bitfinex-derivatives/quotes_BNBF0:USTF0_20250305
["timestamp","ask_amount","ask_price","bid_price","bid_amount"]
[1741214695739,0.97110498,597.0,596.31,0.46165148]
[1741214696045,0.97110498,596.99,596.31,0.46165148]
[1741214696241,0.97110498,597.0,596.31,0.46165148]
[1741214696443,2.18271919,597.0,596.31,0.46165148]
[1741214696643,0.97110498,596.99,596.31,0.46165148]
[1741214697244,0.97110498,597.03,596.31,0.46165148]
[1741214697446,2.18271919,597.02,596.31,0.17]
[1741214697746,0.97110498,597.01,596.39,1.24983432]
[1741214697939,0.97110498,597.0,596.39,1.24983432]
[1741214698143,2.18271919,597.01,596.39,1.24983432]
[1741214698343,0.97110498,597.0,596.39,1.24983432]
[1741214698544,0.97110498,597.03,596.39,1.24983432]
[1741214698740,0.97110498,597.02,596.39,1.24983432]
[1741214698940,2.18271919,597.01,596.39,1.24983432]
[1741214699143,0.97110498,597.0,596.39,1.24983432]
[1741214699749,0.97110498,597.03,596.39,1.24983432]
[1741214699940,0.97110498,597.02,596.39,1.24983432]
[1741214700247,0.97110498,597.01,596.39,1.24983432]
[1741214700447,2.18271919,597.02,596.39,1.24983432]
[1741214700643,0.97110498,597.01,596.39,1.24983432]
[1741214701046,2.18271919,597.01,596.39,1.24983432]
[1741214701248,1.21161421,597.01,596.4,0.17]
[1741214701447,0.97093781,597.0,596.4,0.17]
[1741214701947,1.21161421,597.01,596.4,0.17]
[1741214705051,1.21161421,597.02,596.4,0.17]
[1741214705553,2.182544,597.02,596.4,0.17]
[1741214705852,0.97092979,597.01,596.4,0.17]
[1741214706452,0.97092979,597.03,596.4,0.17]
[1741214706653,0.97092979,597.02,596.4,0.17]
[1741214706852,0.97086319,597.02,596.4,0.17]
[1741214707150,2.1824774,597.02,596.4,0.17]
[1741214707352,0.97086319,597.01,596.4,0.17]
[1741214707853,0.97086319,597.03,596.4,0.17]
[1741214708053,0.97086319,597.02,596.4,0.17]
[1741214708256,1.21161421,597.02,596.4,0.17]
[1741214708447,0.97086319,597.02,596.4,0.17]
[1741214708652,0.97086319,597.1,596.4,0.17]
[1741214708848,0.97086319,597.09,596.4,0.17]
[1741214709052,0.97086319,597.08,596.4,0.17]
[1741214709253,1.21161421,597.09,596.4,0.17]
[1741214709454,2.1824774,597.09,596.4,0.17]
[1741214709652,0.97086319,597.08,596.4,0.17]
[1741214709847,1.21161421,597.2,596.4,0.17]
[1741214710053,0.97056019,597.19,596.4,0.17]
[1741214710253,0.97056019,597.18,596.4,0.17]
[1741214710449,0.97056019,597.17,596.4,0.17]
[1741214710654,0.97056019,597.16,596.4,0.17]
[1741214710858,0.97056019,597.15,596.4,0.17]
[1741214711058,0.97056019,597.14,596.4,0.17]
[1741214711260,0.97056019,597.13,596.4,0.17]
[1741214711460,0.97056019,597.14,596.4,0.17]
[1741214711655,0.97056019,597.13,596.4,0.17]
[1741214711855,1.21161421,597.13,596.4,0.17]
[1741214712054,2.1821744,597.13,596.4,0.17]
[1741214712259,2.1821744,597.12,596.4,0.17]
[1741214712462,0.97056019,597.11,596.4,0.17]
[1741214712760,1.21161421,597.11,596.4,0.17]
[1741214713558,0.97012481,597.14,596.4,0.17]
[1741214713761,2.18173902,597.13,596.4,0.17]
[1741214713962,0.97012481,597.12,596.4,0.17]
[1741214714262,1.21161421,597.13,596.4,0.17]
[1741214714657,2.18173902,597.15,596.4,0.17]
[1741214714860,0.97012481,597.14,596.4,0.17]
[1741214715060,2.18173902,597.15,596.4,0.17]
[1741214715362,1.21161421,597.14,596.4,0.17]
[1741214717065,0.97012481,597.15,596.4,0.17]
[1741214717266,1.21161421,597.14,596.4,0.17]
[1741214717966,1.043,597.16,596.4,0.17]
[1741214729975,1.043,597.16,596.4,1.41983432]
[1741214731876,1.043,597.16,596.4,0.17]
[1741214735577,1.043,597.16,596.42,1.24983432]
[1741214737973,1.043,597.16,596.41,1.24983432]
[1741214739180,1.043,597.16,596.41,1.41983432]
[1741214739876,0.96863364,597.22,596.42,1.24983432]
[1741214740381,2.75795561,597.36,596.42,1.24983432]
[1741214740382,3.02092122,597.35,596.42,1.24983432]
[1741214740576,0.96863364,597.34,596.42,1.24983432]
[1741214740775,2.17676743,597.33,596.42,1.24983432]
[1741214740977,2.17676743,597.32,596.42,1.24983432]
[1741214741177,0.96863364,597.31,596.42,1.24983432]
[1741214741482,2.17676743,597.3,596.42,1.24983432]
[1741214741677,0.2915574,597.34,596.42,1.24983432]
[1741214741678,2.17676743,597.29,596.42,1.24983432]
[1741214741877,2.17676743,597.28,596.42,1.24983432]
[1741214742077,0.96863364,597.27,596.42,1.24983432]
[1741214742279,0.96863364,597.26,596.42,1.24983432]
[1741214742584,0.96863364,597.26,596.43,1.24983432]
[1741214742785,0.96863364,597.31,596.43,1.24983432]
[1741214742980,1.16,597.25,596.43,1.24983432]
[1741214743984,2.36813379,597.25,596.43,1.24983432]
[1741214744181,0.96863364,597.24,596.41,1.71140271]
[1741214744383,3.33676743,597.25,596.41,1.71140271]
[1741214744582,2.51845546,597.24,596.41,1.71140271]
[1741214744782,0.96863364,597.24,596.41,1.71140271]
[1741214744985,1.20813379,597.23,596.41,1.71140271]
[1741214745583,2.12863364,597.25,596.41,1.71140271]
[1741214746086,2.12863364,597.25,596.44,1.24983432]
[1741214746287,1.16,597.25,596.44,1.24983432]
[1741214746485,2.12863364,597.25,596.44,1.24983432]
[1741214746680,2.36813379,597.25,596.44,1.24983432]
[1741214746881,4.88658925,597.25,596.44,1.24983432]
[1741214747084,3.72658925,597.24,596.44,1.24983432]
[1741214747287,0.96863364,597.23,596.44,1.24983432]
[1741214747486,2.17676743,597.24,596.44,1.24983432]
[1741214747681,0.96863364,597.23,596.44,1.24983432]
[1741214748084,0.96863364,597.23,596.51,1.24983432]
[1741214748383,2.17676743,597.23,596.51,1.24983432]
[1741214748581,0.96863364,597.22,596.51,1.24983432]
[1741214748886,0.96863364,597.24,596.51,1.24983432]
[1741214749089,1.16,597.25,596.51,1.24983432]
[1741214749387,0.96863364,597.24,596.51,1.24983432]
[1741214749589,0.96863364,597.23,596.51,1.24983432]
[1741214749784,0.96863364,597.22,596.51,1.24983432]
[1741214750087,2.17676743,597.24,596.51,1.24983432]
[1741214750285,0.96863364,597.23,596.53,1.24983432]
[1741214750484,0.96863364,597.22,596.53,1.24983432]
[1741214750682,0.96863364,597.23,596.53,1.24983432]
[1741214750886,2.17676743,597.23,596.53,1.24983432]
[1741214751484,0.96863364,597.22,596.53,1.24983432]
[1741214752593,0.96863364,597.22,596.47,1.24983432]
[1741214752783,0.96863364,597.23,596.47,1.24983432]
[1741214752987,0.96863364,597.22,596.47,1.24983432]
[1741214753186,2.17676743,597.23,596.47,1.24983432]
[1741214753388,0.96863364,597.22,596.47,1.24983432]
[1741214753590,2.51921949,597.23,596.47,1.24983432]
[1741214753893,2.17676743,597.22,596.47,1.24983432]
[1741214754192,0.96863364,597.21,596.47,1.24983432]
[1741214754392,2.51921949,597.22,596.52,1.24983432]
[1741214754586,0.96863364,597.21,596.52,1.24983432]
[1741214754985,0.96863364,597.22,596.52,1.24983432]
[1741214755189,0.96863364,597.21,596.52,1.24983432]
[1741214755389,0.9695217,597.21,596.52,1.24983432]
[1741214755787,0.9695217,597.2,596.52,1.24983432]
[1741214755986,2.17765549,597.21,596.52,1.24983432]
[1741214756192,0.9695217,597.2,596.48,1.24983432]
[1741214756888,2.17765549,597.2,596.48,1.24983432]
[1741214757090,0.9695217,597.19,596.48,1.24983432]
[1741214757687,0.9695217,597.22,596.48,1.24983432]
[1741214758092,2.17765549,597.22,596.48,1.24983432]
[1741214758391,0.9695217,597.21,596.48,1.24983432]
[1741214758586,0.9695217,597.21,596.46,1.5413905]
[1741214758788,2.17765549,597.21,596.46,1.5413905]
[1741214758990,0.9695217,597.2,596.46,1.5413905]
[1741214759791,0.9695217,597.22,596.46,1.5413905]
[1741214759994,2.17765549,597.21,596.46,1.5413905]
[1741214760194,0.9695217,597.2,596.46,1.5413905]
[1741214760390,2.17765549,597.2,596.46,1.5413905]
[1741214760591,0.9695217,597.19,596.46,1.5413905]
[1741214760792,1.20813379,597.2,596.46,1.5413905]
[1741214760992,2.52078071,597.25,596.46,1.5413905]
[1741214761193,0.9695217,597.24,596.46,1.5413905]
[1741214761394,1.20813379,597.26,596.46,1.5413905]
[1741214761395,0.9695217,597.23,596.46,1.5413905]
[1741214761696,0.9695217,597.22,596.46,1.5413905]
[1741214761894,0.9695217,597.21,596.46,1.5413905]
[1741214762091,0.9695217,597.2,596.46,1.5413905]
[1741214762292,2.17765549,597.22,596.46,1.24983432]
[1741214762497,0.9695217,597.21,596.46,1.24983432]
[1741214762697,0.9695217,597.2,596.5,1.24983432]
[1741214762896,2.17765549,597.21,596.5,1.24983432]
[1741214763093,1.9755217,597.2,596.5,1.24983432]
[1741214763299,1.9755217,597.2,596.51,0.17]
[1741214763796,1.006,597.2,596.51,0.17]
[1741214764897,0.96990907,597.19,596.51,0.17]
[1741214765099,1.006,597.2,596.51,0.17]
[1741214766295,0.97017619,597.19,596.51,0.17]
[1741214766500,0.97017619,597.18,596.51,0.17]
[1741214766701,2.17830998,597.17,596.51,0.17]
[1741214766894,0.97017619,597.16,596.51,0.17]
[1741214767294,0.97017619,597.18,596.51,1.41983432]
[1741214767499,0.97017619,597.17,596.51,1.41983432]
[1741214767802,0.97017619,597.16,596.51,1.41983432]
[1741214767996,2.17830998,597.15,596.51,1.41983432]
[1741214768195,0.97017619,597.14,596.51,1.41983432]
[1741214768402,0.97017619,597.13,596.51,1.41983432]
[1741214768598,1.20813379,597.18,596.51,1.41983432]
[1741214768599,0.97017619,597.17,596.51,1.41983432]
[1741214768796,0.97017619,597.16,596.51,1.41983432]
[1741214769101,2.17830998,597.15,596.51,1.41983432]
[1741214769303,0.97017619,597.14,596.53,1.24983432]
[1741214769497,0.97017619,597.13,596.53,1.24983432]
[1741214769702,0.97017619,597.12,596.53,1.24983432]
[1741214770601,1.20813379,597.18,596.54,1.24983432]
[1741214770602,0.97017619,597.17,596.54,1.24983432]
[1741214770801,2.17830998,597.16,596.54,1.24983432]
[1741214770998,0.97017619,597.15,596.54,1.24983432]
[1741214771197,0.97017619,597.14,596.54,1.24983432]
[1741214771398,2.17830998,597.13,596.54,1.24983432]
[1741214771702,2.17830998,597.12,596.54,1.24983432]
[1741214771897,0.97017619,597.11,596.54,1.24983432]
[1741214772298,0.97017619,597.17,596.54,1.24983432]
[1741214772502,0.97017619,597.16,596.54,1.24983432]
[1741214772702,0.97017619,597.15,596.53,1.24983432]
[1741214772903,0.97017619,597.14,596.53,1.24983432]
[1741214773202,0.97017619,597.13,596.53,1.24983432]
[1741214773403,0.97017619,597.14,596.53,1.24983432]
[1741214773597,2.17830998,597.13,596.53,1.24983432]
[1741214773802,0.97017619,597.12,596.53,1.24983432]
[1741214773999,2.17830998,597.17,596.53,1.24983432]
[1741214774200,0.97017619,597.16,596.53,1.24983432]
[1741214774403,1.20813379,597.17,596.53,1.24983432]
[1741214774404,0.97017619,597.15,596.53,1.24983432]
[1741214774600,0.97017619,597.14,596.53,1.24983432]
[1741214774802,0.97017619,597.13,596.55,1.24983432]
[1741214775003,0.97017619,597.12,596.55,1.24983432]
[1741214775203,1.20813379,597.12,596.55,1.24983432]
[1741214775406,0.97017619,597.11,596.55,1.24983432]
[1741214775806,0.97017619,597.18,596.55,1.24983432]
[1741214776006,0.97017619,597.17,596.55,1.24983432]
[1741214776209,0.97017619,597.16,596.55,1.24983432]
[1741214776411,0.97017619,597.15,596.55,1.24983432]
[1741214776611,0.97017619,597.14,596.55,1.24983432]
[1741214776811,0.97017619,597.13,596.54,1.24983432]
[1741214777005,2.17830998,597.12,596.54,1.24983432]
[1741214777207,0.97017619,597.11,596.54,1.24983432]
[1741214777407,2.17830998,597.11,596.54,1.24983432]
[1741214777607,0.97126481,597.1,596.54,1.24983432]
[1741214778207,2.1793986,597.17,596.54,1.24983432]
[1741214778414,2.1793986,597.16,596.54,1.24983432]
[1741214778613,2.1793986,597.15,596.54,1.41983432]
[1741214778815,0.97126481,597.14,596.54,0.17]
[1741214779012,2.1793986,597.13,596.54,0.17]
[1741214779317,1.20813379,597.13,596.54,0.17]
[1741214779537,1.74025808,597.12,596.54,0.17]
[1741214779713,2.94839187,597.12,596.54,0.17]
[1741214779911,1.97713379,597.12,596.54,0.17]
[1741214780312,0.769,597.12,596.54,0.17]
[1741214781015,0.769,597.12,596.56,1.24983432]
[1741214782817,1.74014366,597.12,596.56,1.24983432]
[1741214783119,1.74014198,597.12,596.56,1.24983432]
[1741214783319,0.769,597.12,596.56,1.24983432]
[1741214784820,0.769,597.12,596.57,1.24983432]
[1741214787215,0.769,597.12,596.58,1.24983432]
[1741214789820,0.769,597.12,596.57,1.24983432]
[1741214792019,0.769,597.12,596.56,1.24983432]
[1741214795124,0.769,597.12,596.55,0.29154397]
[1741214795125,0.769,597.12,596.55,1.54137829]
[1741214796527,0.769,597.12,596.55,1.24983432]
[1741214796722,0.769,597.12,596.55,1.54137951]
[1741214797527,0.769,597.12,596.56,1.24983432]
[1741214800127,0.769,597.12,596.55,0.29154397]
[1741214802324,0.769,597.12,596.54,0.17]
[1741214802724,0.769,597.12,596.55,0.2915513]
[1741214805427,0.769,597.12,596.54,0.17]
[1741214805627,0.769,597.12,596.55,0.29155252]
[1741214808425,0.769,597.12,596.51,1.24983432]
[1741214808626,0.769,597.12,596.55,0.29155007]
[1741214809830,0.769,597.12,596.55,0.46155007]
[1741214810433,0.769,597.12,596.57,1.24983432]
[1741214813029,0.769,597.12,596.55,0.46155007]
[1741214814526,0.97041028,597.25,596.55,0.17]
[1741214814728,1.2111275,597.26,596.55,0.46156473]
[1741214814929,0.29156473,597.4,596.55,0.46156473]
[1741214815126,0.97041028,597.39,596.55,0.46156473]
[1741214815326,0.97041028,597.38,596.55,0.46156473]
[1741214815527,0.97041028,597.37,596.55,0.46156473]
[1741214815834,0.97041028,597.36,596.55,0.46156473]
[1741214816027,0.97041028,597.35,596.55,0.46156473]
[1741214816329,0.97041028,597.34,596.55,0.46156473]
[1741214816532,2.18153778,597.33,596.55,0.46156473]
[1741214816733,0.97041028,597.32,596.55,0.46156473]
[1741214816930,0.97041028,597.31,596.55,0.46156473]
[1741214817134,0.97041028,597.3,596.55,0.46156473]
[1741214817336,0.97041028,597.29,596.55,0.17]
[1741214817536,1.2111275,597.29,596.55,0.17]
[1741214817737,1.066,597.28,596.55,0.4615342]
[1741214817937,3.24753778,597.28,596.55,0.4615342]
[1741214818135,0.97041028,597.27,596.55,0.4615342]
[1741214818837,1.066,597.28,596.55,0.4615342]
[1741214820438,1.066,597.28,596.55,0.17]
[1741214821539,1.066,597.28,596.55,0.46152199]
[1741214823340,1.066,597.28,596.55,0.17]
[1741214823735,1.066,597.28,596.55,0.4615171]
[1741214824138,1.066,597.28,596.63,1.24983432]
[1741214826042,1.066,597.28,596.64,1.24983432]
[1741214828341,1.066,597.28,596.63,1.24983432]
[1741214830745,1.066,597.28,596.62,1.24983432]
[1741214832045,1.066,597.28,596.63,0.17]
[1741214841254,2.0357022,597.28,596.63,0.17]
[1741214841448,1.066,597.28,596.63,0.17]
[1741214841656,2.0357022,597.28,596.63,0.17]
[1741214842148,0.9697022,597.27,596.63,0.17]
[1741214844052,1.2111275,597.26,596.63,0.17]
[1741214848359,0.96970977,597.37,596.63,0.17]
[1741214848360,2.1808297,597.33,596.63,0.17]
[1741214848554,0.9697022,597.32,596.63,0.17]
[1741214848758,2.1808297,597.31,596.63,0.17]
[1741214848959,0.9697022,597.3,596.63,0.17]
[1741214849262,0.97014025,597.29,596.63,0.17]
[1741214849557,2.18126775,597.28,596.63,0.17]
[1741214849761,0.97014025,597.27,596.63,0.17]
[1741214849956,1.2111275,597.27,596.63,0.17]
[1741214850660,1.2111275,597.26,596.63,0.17]
[1741214850864,2.2741275,597.26,596.63,0.17]
[1741214851163,0.97014025,597.25,596.63,0.17]
[1741214851361,1.063,597.26,596.63,0.17]
[1741214852261,2.03314025,597.26,596.63,0.17]
[1741214853062,1.063,597.26,596.63,0.17]
[1741214855263,2.03314025,597.26,596.63,0.17]
[1741214855963,3.24426775,597.26,596.63,0.17]
[1741214856164,0.97014025,597.25,596.63,0.17]
[1741214856563,0.97014025,597.25,596.64,1.24983432]
[1741214856763,1.063,597.26,596.64,1.24983432]
[1741214857859,0.97014025,597.25,596.64,1.24983432]
[1741214858266,1.063,597.26,596.66,1.24983432]
[1741214859169,2.03314025,597.26,596.66,1.24983432]
[1741214859372,1.063,597.26,596.66,1.24983432]
[1741214859572,2.03314025,597.26,596.66,1.24983432]
[1741214860167,1.063,597.26,596.66,1.41983432]
[1741214861368,0.97038079,597.25,596.66,1.41983432]
[1741214862275,2.03338079,597.26,596.66,1.41983432]
[1741214862467,0.97038079,597.25,596.66,1.41983432]
[1741214862670,3.24450829,597.26,596.66,1.41983432]
[1741214862873,0.97038079,597.25,596.66,1.41983432]
[1741214863271,1.063,597.26,596.66,1.41983432]
[1741214863677,1.063,597.26,596.66,0.17]
[1741214864877,2.03338079,597.26,596.66,1.42213536]
[1741214865074,1.063,597.26,596.66,1.42213536]
[1741214865275,2.03338079,597.26,596.66,1.42213536]
[1741214865480,3.24450829,597.26,596.66,1.42213536]
[1741214865679,0.97038079,597.25,596.66,1.42213536]
[1741214867278,0.97038079,597.24,596.66,1.42213536]
[1741214867479,0.97038079,597.25,596.66,1.42213536]
[1741214867681,0.97038079,597.24,596.66,1.42213536]
[1741214868078,0.97038079,597.24,596.67,1.25213536]
[1741214868877,0.97077112,597.24,596.67,1.25213536]
[1741214869281,0.97077112,597.23,596.67,1.25213536]
[1741214869479,2.18189862,597.24,596.67,1.25213536]
[1741214869677,0.97077112,597.23,596.67,1.25213536]
[1741214869877,1.2111275,597.24,596.67,1.25213536]
[1741214870080,2.18197301,597.25,596.67,1.25213536]
[1741214870480,2.18197301,597.25,596.66,1.71362927]
[1741214871383,0.97084551,597.24,596.66,1.42213536]
[1741214871977,0.97084551,597.24,596.67,1.25213536]
[1741214873479,0.97084551,597.23,596.67,1.25213536]
[1741214873684,1.063,597.26,596.67,1.25213536]
[1741214873685,2.18197301,597.24,596.67,1.25213536]
[1741214873884,0.97084551,597.23,596.67,1.25213536]
[1741214874386,0.97084551,597.22,596.66,0.17]
[1741214874684,0.97109838,597.21,596.66,0.46149513]
[1741214874884,0.97109838,597.23,596.66,0.46149513]
[1741214875079,1.2111275,597.2,596.66,0.46149513]
[1741214875479,1.2111275,597.19,596.66,0.46149513]
[1741214876082,0.97109865,597.23,596.66,0.46149513]
[1741214876281,0.97109865,597.22,596.66,0.29149513]
[1741214876482,0.97109865,597.21,596.66,0.29149513]
[1741214876779,1.2111765,597.2,596.66,0.29149513]
[1741214877383,1.2111765,597.2,596.11,1.25213536]
[1741214877583,1.2111765,597.19,596.13,0.33549729]
[1741214878282,0.97108353,597.23,596.13,0.33549729]
[1741214878486,0.97108353,597.22,596.13,0.33549729]
[1741214878684,0.97108353,597.21,596.13,0.33549729]
[1741214878884,0.97108353,597.2,596.13,0.33549729]
[1741214879085,1.21116266,597.22,596.13,0.33549729]
[1741214879385,2.18223931,597.21,596.14,0.17]
[1741214879580,0.97107665,597.2,596.14,0.17]
[1741214879785,1.21116266,597.21,596.14,0.17]
[1741214879985,1.21116266,597.19,596.16,0.3354804]
[1741214880389,0.97107011,597.25,596.16,0.3354804]
[1741214880586,0.97107011,597.24,596.16,0.3354804]
[1741214880887,0.97107011,597.23,596.16,0.3354804]
[1741214881088,0.97107011,597.22,596.16,0.3354804]
[1741214881388,0.97107011,597.21,596.16,0.3354804]
[1741214881686,0.97107011,597.2,596.16,0.3354804]
[1741214882387,1.21115342,597.19,596.16,0.3354804]
[1741214882980,0.97105743,597.24,596.16,0.3354804]
[1741214883185,0.97105743,597.23,596.16,0.3354804]
[1741214883383,2.18217768,597.22,596.16,0.3354804]
[1741214883585,0.97105743,597.21,596.16,0.3354804]
[1741214883785,0.97105743,597.2,596.16,0.3354804]
[1741214883987,1.21112025,597.2,596.16,0.3354804]
[1741214884186,2.18217768,597.2,596.16,0.3354804]
[1741214884383,1.21112025,597.2,596.16,0.3354804]
[1741214884585,2.18214555,597.25,596.16,0.3354804]
[1741214884786,0.9710253,597.24,596.16,0.3354804]
[1741214884988,0.9710253,597.23,596.16,0.3354804]
[1741214885189,2.18214555,597.24,596.16,0.3354804]
[1741214885385,0.9710253,597.23,596.16,0.3354804]
[1741214885583,2.18214555,597.25,596.16,0.3354804]
[1741214885786,0.9710253,597.24,596.16,0.3354804]
[1741214886182,1.21112025,597.24,596.16,0.3354804]
[1741214886590,2.18214555,597.25,596.16,0.3354804]
[1741214886991,2.18214555,597.25,596.52,1.25213536]
[1741214888796,0.97098067,597.24,596.52,1.25213536]
[1741214889191,2.18210092,597.25,596.52,1.25213536]
[1741214890299,2.18210092,597.25,596.64,1.25213536]
[1741214890300,1.21112025,597.25,596.64,1.25213536]
[1741214890695,2.18211631,597.25,596.64,1.25213536]
[1741214892093,0.97099606,597.24,596.63,1.25213536]
[1741214892296,3.73571001,597.34,596.63,1.25213536]
[1741214892493,2.52458976,597.33,596.63,1.25213536]
[1741214892798,2.18211631,597.32,596.63,1.25213536]
[1741214892998,0.97099606,597.31,596.63,1.25213536]
[1741214893197,0.97099606,597.3,596.63,1.25213536]
[1741214893494,2.18211631,597.29,596.63,1.25213536]
[1741214893701,0.97099606,597.28,596.63,1.25213536]
[1741214894000,1.21112025,597.29,596.63,1.25213536]
[1741214894001,0.97099606,597.27,596.63,1.25213536]
[1741214894201,2.18211631,597.26,596.63,1.25213536]
[1741214894401,0.97099606,597.25,596.63,1.25213536]
[1741214894697,2.18211631,597.24,596.63,1.25213536]
[1741214894901,0.97099606,597.23,596.63,1.25213536]
[1741214895102,0.97099606,597.22,596.63,1.25213536]
[1741214895500,2.18211631,597.22,596.63,1.25213536]
[1741214895700,0.97099606,597.21,596.63,1.25213536]
[1741214895902,1.21112025,597.22,596.63,1.25213536]
[1741214896107,2.18209854,597.23,596.63,1.25213536]
[1741214896303,0.97097829,597.22,596.63,1.25213536]
[1741214896498,2.18209854,597.22,596.63,1.25213536]
[1741214896699,1.21112025,597.22,596.63,1.25213536]
[1741214896897,2.18210008,597.23,596.63,1.25213536]
[1741214897097,0.97097983,597.22,596.63,1.25213536]
[1741214897506,2.18210008,597.22,596.64,1.25213536]
[1741214897698,0.97097983,597.21,596.64,1.25213536]
[1741214897999,1.21112025,597.22,596.64,1.25213536]
[1741214898204,2.18210008,597.22,596.64,1.25213536]
[1741214898404,0.97097983,597.21,596.64,1.25213536]
[1741214898800,1.21112025,597.23,596.64,1.25213536]
[1741214899000,0.97097928,597.22,596.64,1.25213536]
[1741214899405,2.18209953,597.22,596.64,1.25213536]
[1741214899605,1.21112025,597.22,596.64,1.25213536]
[1741214899805,0.97098765,597.21,596.64,1.25213536]
[1741214900007,1.21112025,597.23,596.64,1.25213536]
[1741214900302,2.18210809,597.22,596.63,1.25213536]
[1741214900501,0.97098784,597.21,596.63,1.25213536]
[1741214900702,1.21112025,597.22,596.63,1.25213536]
[1741214900905,2.18211045,597.21,596.63,1.25213536]
[1741214901109,1.21112025,597.23,596.63,1.25213536]
[1741214901308,0.97099231,597.22,596.63,1.25213536]
[1741214901609,0.97099231,597.21,596.63,1.25213536]
[1741214901809,0.97099231,597.23,596.63,1.25213536]
[1741214902104,2.18202633,597.22,596.63,1.25213536]
[1741214902308,0.97098247,597.21,596.63,1.25213536]
[1741214902504,0.848,597.24,596.63,1.25213536]
[1741214902505,1.21104386,597.23,596.63,1.25213536]
[1741214902708,0.848,597.24,596.63,1.25213536]
[1741214902709,2.18202088,597.22,596.63,1.25213536]
[1741214902909,1.21104386,597.22,596.63,1.25213536]
[1741214903209,1.21104386,597.23,596.63,1.25213536]
[1741214903408,2.1820358,597.22,596.63,1.25213536]
[1741214903609,1.21104386,597.22,596.63,1.25213536]
[1741214903809,0.97098716,597.21,596.63,1.25213536]
[1741214904009,1.21104386,597.21,596.63,1.25213536]
[1741214904401,1.21104386,597.23,596.63,1.25213536]
[1741214904602,1.21104386,597.23,596.65,1.25213536]
[1741214905204,0.848,597.24,596.65,1.25213536]
[1741214905710,0.848,597.24,596.65,1.42213536]
[1741214907408,0.848,597.24,596.65,0.17]
[1741214933939,1.2108377,597.32,596.65,0.17]
[1741214934742,2.18096706,597.34,596.65,0.17]
[1741214934938,0.97012936,597.33,596.65,0.17]
[1741214935139,0.97012936,597.32,596.65,0.17]
[1741214935441,2.18096706,597.33,596.65,0.17]
[1741214935643,0.97012936,597.32,596.65,0.17]
[1741214935942,1.2108377,597.33,596.65,0.17]
[1741214936138,0.97012936,597.32,596.65,0.17]
[1741214936343,0.97012936,597.35,596.65,0.17]
[1741214936544,0.97012936,597.34,596.65,0.17]
[1741214936744,0.97012936,597.33,596.65,0.17]
[1741214936945,0.97012936,597.32,596.65,0.17]
[1741214937345,0.819,597.33,596.65,0.17]
[1741214939043,1.78912936,597.33,596.65,0.17]
[1741214939245,0.97012936,597.32,596.65,0.17]
[1741214939746,0.97012936,597.32,596.68,1.25213536]
[1741214940341,1.2108377,597.31,596.68,1.25213536]
[1741214940744,1.2108377,597.32,596.68,1.25213536]
[1741214941041,0.819,597.33,596.68,1.25213536]
[1741214941240,1.78912936,597.33,596.68,1.25213536]
[1741214941645,2.99996706,597.33,596.68,1.25213536]
[1741214941842,0.97012936,597.32,596.68,1.25213536]
[1741214942041,2.0298377,597.33,596.68,1.25213536]
[1741214942343,0.819,597.33,596.68,1.25213536]
[1741214942841,1.78912936,597.33,596.68,1.25213536]
[1741214943044,1.78912936,597.33,596.67,0.29146705]
[1741214943248,2.99996706,597.33,596.68,0.17]
[1741214943443,0.97012936,597.32,596.68,0.17]
[1741214943948,0.819,597.33,596.68,0.17]
[1741214944342,2.99996706,597.33,596.68,0.17]
[1741214944546,0.97012936,597.32,596.68,0.17]
[1741214945251,0.819,597.33,596.68,0.17]
[1741214945445,0.97012868,597.32,596.68,0.17]
[1741214945645,0.97012868,597.31,596.68,0.17]
[1741214945851,2.18096638,597.32,596.68,0.17]
[1741214946151,0.97012868,597.31,596.68,0.17]
[1741214946551,1.2108377,597.3,596.68,0.17]
[1741214947153,2.18096638,597.3,596.68,0.17]
[1741214947346,0.97012868,597.29,596.68,0.17]
[1741214947748,0.97012868,597.31,596.68,0.17]
[1741214948145,0.97012868,597.3,596.68,0.17]
[1741214948351,0.97012868,597.29,596.68,0.17]
[1741214948546,0.97012868,597.3,596.68,0.17]
[1741214948751,2.18096638,597.3,596.68,0.17]
[1741214948953,0.97012868,597.29,596.68,0.17]
[1741214949146,2.18096638,597.32,596.68,0.17]
[1741214949350,0.97012868,597.31,596.68,0.17]
[1741214949554,0.97012868,597.3,596.68,0.17]
[1741214949963,2.18096638,597.3,596.68,0.17]
[1741214950149,0.97012868,597.29,596.68,0.17]
[1741214950345,1.2108377,597.3,596.68,0.17]
[1741214950547,2.18106156,597.32,596.68,0.17]